bitfinex-derivatives/quotes_ETHF0:USTF0_20240829
["timestamp","ask_amount","ask_price","bid_price","bid_amount"]
[1724919003657,11.70739331,2545.1,2545.0,0.3623]
[1724919004057,13.24072578,2545.1,2545.0,0.3623]
[1724919004259,11.31458331,2545.1,2545.0,0.3623]
[1724919004563,10.03292578,2545.1,2545.0,0.3623]
[1724919005458,8.49959331,2545.1,2545.0,0.3623]
[1724919006065,10.03340061,2545.1,2545.0,0.3623]
[1724919006267,4.57079331,2545.1,2545.0,0.3623]
[1724919007271,6.61822256,2545.1,2545.0,0.3623]
[1724919007463,14.73685256,2545.1,2545.0,0.3623]
[1724919007665,12.68942331,2545.1,2545.0,0.3623]
[1724919008165,0.39285,2544.9,2544.7,0.75196]
[1724919008365,1.92804198,2544.8,2544.7,0.3611]
[1724919008564,6.25979901,2544.8,2544.7,0.3611]
[1724919008963,6.63669901,2544.8,2544.7,0.3611]
[1724919009358,5.10150703,2544.8,2544.7,0.3611]
[1724919009960,7.14842967,2544.8,2544.7,0.3611]
[1724919010667,7.15067775,2544.8,2544.7,0.3611]
[1724919011267,5.10150703,2544.8,2544.7,0.3611]
[1724919013764,7.6607936,2544.8,2544.7,0.3611]
[1724919014070,4.70865703,2544.8,2544.7,0.75397]
[1724919014368,6.38207699,2544.8,2544.7,0.3611]
[1724919015167,6.38207699,2544.8,2544.7,0.75397]
[1724919015480,6.38207699,2544.8,2544.7,4.68357]
[1724919015669,2.05031996,2544.8,2544.7,4.68357]
[1724919015865,2.05031996,2544.9,2544.8,0.39285]
[1724919016173,6.59299445,2544.9,2544.8,0.77725]
[1724919016369,6.59299445,2544.9,2544.8,4.70685]
[1724919017062,2.05031996,2544.9,2544.8,9.07899]
[1724919017269,2.05031996,2545.0,2544.9,0.39284]
[1724919017662,2.05031996,2545.0,2544.9,4.32244]
[1724919018874,5.26401098,2545.1,2545.0,0.39282]
[1724919019073,5.26401098,2545.1,2545.0,4.68822]
[1724919019273,5.26401098,2545.1,2545.0,8.07822]
[1724919019469,0.00589102,2545.1,2545.0,18.25329]
[1724919020279,1.5391462,2545.3,2545.2,0.39279]
[1724919020479,2.05031996,2545.5,2545.2,7.57979]
[1724919020480,1.5391462,2545.5,2545.2,7.57979]
[1724919020664,1.5391462,2545.5,2545.4,3.78276]
[1724919020868,1.5391462,2545.5,2545.4,7.71156]
[1724919021274,1.5391462,2545.5,2545.4,4.32156]
[1724919021275,2.05031996,2545.5,2545.4,4.32156]
[1724919021469,2.05031996,2545.5,2545.4,0.39276]
[1724919021778,2.05031996,2545.5,2545.2,3.2078]
[1724919021967,2.05031996,2545.4,2545.2,3.60059]
[1724919022174,2.05031996,2545.4,2545.2,3.2078]
[1724919022371,6.2615042,2545.3,2545.2,3.60059]
[1724919022677,6.51652239,2545.4,2545.2,3.60059]
[1724919023073,2.05031996,2545.4,2545.3,0.39278]
[1724919023465,6.51652239,2545.4,2545.3,0.39278]
[1724919025577,6.51652239,2545.4,2545.3,3.78278]
[1724919025779,6.51652239,2545.4,2545.3,7.71158]
[1724919025974,2.05031996,2545.5,2545.4,0.39276]
[1724919026275,6.57444269,2545.6,2545.5,0.39275]
[1724919026673,2.05621098,2545.7,2545.6,0.39273]
[1724919027072,2.05621098,2545.7,2545.6,4.32073]
[1724919027275,2.05621098,2545.7,2545.6,3.928]
[1724919028381,2.05621098,2545.7,2545.5,0.39274]
[1724919028382,0.00589102,2545.7,2545.5,0.39274]
[1724919028684,2.05010532,2545.6,2545.5,0.39274]
[1724919029075,2.05010532,2545.6,2545.5,4.32154]
[1724919029581,2.05010532,2545.7,2545.5,4.32154]
[1724919029777,2.44282532,2545.7,2545.4,0.39275]
[1724919029975,1.53755572,2545.5,2545.4,0.39275]
[1724919030172,2.05010532,2545.6,2545.5,0.39275]
[1724919030576,2.05010532,2545.7,2545.6,0.39273]
[1724919030785,2.44282532,2545.7,2545.5,0.39274]
[1724919031078,2.05010532,2545.6,2545.5,0.39274]
[1724919031581,2.05010532,2545.6,2545.4,0.39275]
[1724919031877,1.53720667,2545.5,2545.4,0.39275]
[1724919032382,1.53720667,2545.5,2545.4,4.32155]
[1724919033181,1.53720667,2545.5,2545.4,0.39275]
[1724919035775,0.39276,2545.4,2545.3,3.39]
[1724919035969,1.92959766,2545.4,2545.3,3.39]
[1724919036174,1.92959766,2545.4,2545.3,7.3188]
[1724919036393,6.21395117,2545.4,2545.2,3.60059]
[1724919036580,1.88793766,2545.3,2545.2,3.2078]
[1724919036892,4.6114275,2545.3,2545.2,3.2078]
[1724919037078,4.6114275,2545.3,2545.2,3.60059]
[1724919037783,4.6114275,2545.3,2545.2,6.99059]
[1724919037976,0.3511,2545.3,2545.2,5.01059]
[1724919040082,0.3511,2545.3,2545.2,8.93939]
[1724919040287,0.3511,2545.3,2545.2,9.30269]
[1724919041783,1.53683766,2545.5,2545.4,0.39276]
[1724919041986,1.53683766,2545.6,2545.5,0.39275]
[1724919042180,2.05010532,2545.7,2545.6,0.39273]
[1724919042181,1.53683766,2545.7,2545.6,0.39273]
[1724919042386,1.53683766,2545.7,2545.6,1.80273]
[1724919042683,4.75072013,2545.8,2545.7,0.39272]
[1724919042879,4.75072013,2545.8,2545.7,41.19272]
[1724919043280,3.21369102,2545.8,2545.7,41.19272]
[1724919044383,5.26379634,2545.8,2545.7,40.8]
[1724919044589,9.61969533,2545.8,2545.7,41.19272]
[1724919044789,7.56959001,2545.8,2545.7,41.19272]
[1724919044986,4.36179001,2545.8,2545.7,41.19272]
[1724919045382,4.36179001,2545.8,2545.7,45.12072]
[1724919045578,0.00589102,2545.8,2545.7,53.08432]
[1724919045783,2.55928657,2546.2,2546.1,0.39265]
[1724919045784,1.53720722,2546.2,2546.1,0.39265]
[1724919046082,1.53720722,2546.4,2546.3,0.39262]
[1724919046275,1.53720722,2546.4,2546.3,1.80262]
[1724919046478,5.71322737,2546.4,2546.2,1.41]
[1724919046682,1.92177261,2546.3,2546.1,3.192]
[1724919046888,1.53697261,2546.2,2546.1,3.192]
[1724919047079,5.85489716,2546.2,2546.1,3.192]
[1724919047786,9.78209716,2546.2,2546.1,3.192]
[1724919048490,9.78191847,2546.2,2546.1,3.192]
[1724919048679,10.17455847,2546.2,2546.1,3.192]
[1724919048884,0.98172,2545.9,2545.3,1.0226866]
[1724919049084,3.60056,2545.5,2545.1,0.3928]
[1724919049282,1.5361387,2545.3,2545.1,0.3928]
[1724919049477,6.4916685,2545.4,2545.1,0.3928]
[1724919049683,0.14045493,2545.2,2545.1,0.3928]
[1724919050085,4.44885149,2545.3,2545.0,3.4]
[1724919050385,1.5361387,2545.4,2545.3,0.39278]
[1724919050587,0.39274,2545.6,2545.3,0.39278]
[1724919050588,1.5361387,2545.5,2545.3,0.39278]
[1724919050777,1.5361387,2545.5,2545.3,0.75478]
[1724919050982,4.25219393,2545.5,2545.4,4.32156]
[1724919051285,1.5361387,2545.7,2545.6,0.39273]
[1724919051489,1.5361387,2545.8,2545.7,0.39272]
[1724919051794,1.5361387,2545.9,2545.7,4.67532]
[1724919052090,1.5361387,2545.9,2545.8,0.3927]
[1724919052594,4.5674356,2545.8,2545.6,0.39273]
[1724919052894,1.53677261,2545.7,2545.6,0.39273]
[1724919053192,1.53677261,2545.7,2545.5,0.3546]
[1724919053193,6.0406378,2545.7,2545.5,0.74734]
[1724919053389,6.4087378,2545.7,2545.6,0.39273]
[1724919053582,4.87196519,2545.7,2545.6,0.39273]
[1724919054096,6.4090064,2545.7,2545.6,0.39273]
[1724919054485,4.87196519,2545.7,2545.6,0.39273]
[1724919055290,6.40919573,2545.7,2545.6,0.39273]
[1724919055683,6.40934548,2545.7,2545.5,0.74734]
[1724919055894,1.53734669,2545.6,2545.5,0.74734]
[1724919056087,1.89084669,2545.6,2545.5,0.74734]
[1724919057898,0.39275,2545.5,2545.3,3.53277]
[1724919058093,1.53807662,2545.5,2545.0,3.2178]
[1724919058294,1.53807662,2545.1,2545.0,0.40282]
[1724919058488,1.53807662,2545.2,2545.1,0.39281]
[1724919058690,1.53807662,2545.2,2545.1,1.13771]
[1724919058904,1.53807662,2545.2,2545.1,5.06651]
[1724919059196,1.53807662,2545.2,2545.1,4.6737]
[1724919059494,1.53807662,2545.2,2545.1,5.06651]
[1724919059697,0.00589102,2545.3,2545.2,0.39279]
[1724919059998,0.00589102,2545.3,2545.2,4.32159]
[1724919061298,0.00589102,2545.3,2545.2,8.51138]
[1724919061488,0.00589102,2545.3,2545.2,14.51138]
[1724919061684,0.00589102,2545.3,2545.2,10.32159]
[1724919061891,0.00589102,2545.3,2545.2,13.52939]
[1724919062194,0.00589102,2545.3,2545.2,14.51138]
[1724919064597,0.00589102,2545.3,2545.2,5.30358]
[1724919064790,0.00589102,2545.3,2545.2,11.30358]
[1724919064992,0.00589102,2545.3,2545.2,10.32159]
[1724919067092,1.54396764,2545.3,2545.2,4.32159]
[1724919070700,1.54396764,2545.3,2545.2,3.9288]
[1724919070894,0.00589102,2545.3,2545.2,0.39279]
[1724919071591,0.00589102,2545.3,2545.0,3.772]
[1724919071796,1.935035,2545.2,2545.0,4.16482]
[1724919071999,1.542235,2545.1,2545.0,4.16482]
[1724919072299,2.43100647,2545.1,2545.0,3.772]
[1724919072692,2.82381647,2545.1,2545.0,3.4]
[1724919073002,2.43100647,2545.1,2545.0,3.79282]
[1724919073599,0.3828,2545.1,2545.0,3.79282]
[1724919077796,10.8835963,2545.1,2545.0,0.40282]
[1724919077996,6.57850223,2545.1,2545.0,0.40282]
[1724919078199,8.45258983,2545.1,2545.0,0.01]
[1724919078403,0.39285,2544.9,2544.6,0.39288]
[1724919078602,2.05304427,2544.7,2544.4,0.3867]
[1724919078897,1.5398152,2544.7,2544.5,44.19]
[1724919079202,1.5398152,2544.8,2544.7,0.39287]
[1724919079498,2.05304427,2545.0,2544.7,0.39287]
[1724919079499,1.5398152,2545.0,2544.9,0.39284]
[1724919079700,1.5398152,2545.0,2544.9,3.60064]
[1724919079903,1.5398152,2545.1,2545.0,0.39282]
[1724919080099,1.5398152,2545.1,2545.0,40.8]
[1724919080406,4.12272762,2545.1,2545.0,40.8]
[1724919081606,5.66235861,2545.1,2545.0,40.8]
[1724919081805,0.39282,2545.0,2544.8,0.3578]
[1724919082002,1.53962618,2544.9,2544.8,0.3578]
[1724919082206,8.7719565,2544.9,2544.5,0.00589102]
[1724919082400,2.44537082,2544.7,2544.6,40.8]
[1724919082799,10.58236793,2544.7,2544.6,40.8]
[1724919083200,0.39289,2544.6,2544.5,0.00589102]
[1724919084109,0.77509,2544.6,2544.5,0.00589102]
[1724919084511,2.31341638,2544.6,2544.5,0.00589102]
[1724919086004,2.31341638,2544.6,2544.3,0.39292]
[1724919086005,0.39295,2544.2,2544.1,3.232]
[1724919086204,3.2078,2544.2,2543.9,0.39299]
[1724919086409,1.53700807,2544.1,2544.0,0.39297]
[1724919086710,2.27030807,2544.4,2544.2,0.39295]
[1724919086911,2.27030807,2544.4,2544.1,0.39295]
[1724919086912,1.53700807,2544.3,2544.1,0.39295]
[1724919087212,5.9136121,2544.3,2544.1,0.39295]
[1724919087604,4.37660403,2544.3,2544.0,0.39297]
[1724919088209,5.9136121,2544.3,2543.9,6.44569102]
[1724919088512,6.3065421,2544.3,2543.9,6.83867102]
[1724919088717,0.39297,2544.1,2543.9,6.44569102]
[1724919088924,1.92996807,2544.2,2543.9,6.44569102]
[1724919089110,4.09808031,2544.0,2543.9,6.83868102]
[1724919089415,1.92994807,2544.3,2543.9,6.44569102]
[1724919089416,4.09808031,2544.1,2543.9,6.44569102]
[1724919089614,4.49103031,2544.2,2543.9,6.44569102]
[1724919089910,0.39295,2544.2,2543.9,6.44569102]
[1724919090116,4.17021318,2544.1,2543.9,6.44569102]
[1724919091214,0.39298,2544.0,2543.9,6.44569102]
[1724919091511,0.77278,2544.0,2543.9,6.44569102]
[1724919093109,9.59372132,2544.0,2543.9,6.44569102]
[1724919093411,5.66252132,2544.0,2543.9,6.44569102]
[1724919094313,9.59372132,2544.0,2543.9,6.44569102]
[1724919095314,10.57617132,2544.0,2543.9,0.00589102]
[1724919096205,9.59372132,2544.0,2543.9,0.00589102]
[1724919099020,12.80152132,2544.0,2543.9,0.00589102]
[1724919099214,18.80152132,2544.0,2543.9,0.00589102]
[1724919099720,12.80152132,2544.0,2543.9,0.00589102]
[1724919101120,13.78397132,2544.0,2543.9,0.00589102]
[1724919104316,20.76642132,2544.0,2543.9,0.00589102]
[1724919104625,14.76642132,2544.0,2543.9,0.00589102]
[1724919105011,18.15642132,2544.0,2543.9,0.00589102]
[1724919105820,24.15642132,2544.0,2543.9,0.00589102]
[1724919106219,18.15642132,2544.0,2543.9,0.00589102]
[1724919106421,24.15642132,2544.0,2543.9,0.00589102]
[1724919106718,18.15642132,2544.0,2543.9,0.00589102]
[1724919106920,24.15642132,2544.0,2543.9,0.00589102]
[1724919107122,18.15642132,2544.0,2543.9,0.00589102]
[1724919107331,24.15642132,2544.0,2543.9,0.00589102]
[1724919107527,18.15642132,2544.0,2543.9,0.00589102]
[1724919108926,25.69342939,2544.0,2543.9,0.00589102]
[1724919110022,0.98274,2543.3,2542.5,4.1908]
[1724919110227,3.78313,2543.1,2543.0,0.384]
[1724919110423,3.78313,2543.1,2543.0,0.77712]
[1724919110424,0.39312,2543.1,2543.0,0.77712]
[1724919110627,4.47187682,2543.1,2543.0,0.77712]
[1724919111030,4.07875682,2543.1,2543.0,0.77712]
[1724919111229,3.2078,2543.2,2543.1,0.39312]
[1724919113026,3.6009,2543.2,2543.1,0.39312]
[1724919113829,3.6009,2543.2,2543.0,0.77712]
[1724919114029,0.39312,2543.1,2543.0,0.77712]
[1724919114232,4.51341011,2543.1,2543.0,0.384]
[1724919114432,4.51341011,2543.1,2543.0,0.77713]
[1724919115035,4.51341011,2543.1,2543.0,0.384]
[1724919115333,4.12029011,2543.1,2543.0,0.77713]
[1724919115730,4.51341011,2543.1,2543.0,0.77713]
[1724919116235,4.51341011,2543.1,2543.0,0.384]
[1724919116426,4.12029011,2543.1,2543.0,0.77713]
[1724919117430,0.00589102,2543.3,2543.2,0.3931]
[1724919118036,0.00589102,2543.3,2543.2,1.8131]
[1724919118426,0.00589102,2543.3,2543.2,5.7451]
[1724919119934,0.00589102,2543.3,2543.2,4.3251]
[1724919120142,0.00589102,2543.3,2543.2,7.7251]
[1724919122247,1.53007633,2544.0,2543.6,0.39304]
[1724919122435,1.53007633,2544.0,2543.7,0.7297]
[1724919122739,4.49043925,2543.8,2543.7,41.5297]
[1724919122937,4.49042925,2543.9,2543.7,41.5297]
[1724919123239,4.24170302,2543.8,2543.7,41.5297]
[1724919123540,0.39301,2543.8,2543.7,41.5297]
[1724919123735,4.63471302,2543.8,2543.7,41.5297]
[1724919123936,4.24170302,2543.8,2543.7,41.5297]
[1724919124837,4.24170302,2543.8,2543.7,41.92272]
[1724919125034,3.21369102,2544.1,2543.9,0.39299]
[1724919125336,3.21369102,2544.1,2544.0,0.39298]
[1724919125535,3.21369102,2544.1,2544.0,0.75038]
[1724919126649,4.74376735,2544.1,2544.0,0.3574]
[1724919127147,5.13672735,2544.1,2544.0,0.3574]
[1724919127445,4.35555102,2544.1,2544.0,0.3574]
[1724919128248,6.39565279,2544.1,2544.0,0.3574]
[1724919128435,5.25379279,2544.1,2544.0,0.3574]
[1724919128641,3.21369102,2544.1,2544.0,4.68078]
[1724919128842,1.54499233,2544.1,2544.0,4.68078]
[1724919129445,0.00589102,2544.1,2544.0,4.68078]
[1724919129748,0.00589102,2544.1,2544.0,10.68078]
[1724919129749,1.54499233,2544.1,2544.0,10.68078]
[1724919130045,0.00589102,2544.1,2544.0,10.68078]
[1724919130445,0.00589102,2544.1,2544.0,13.88858]
[1724919131246,0.00589102,2544.1,2544.0,14.87103]
[1724919132443,0.00589102,2544.1,2544.0,3.5652]
[1724919132740,1.54499233,2544.1,2544.0,8.08078]
[1724919133046,0.00589102,2544.1,2544.0,8.08078]
[1724919133551,0.00589102,2544.1,2544.0,4.15038]
[1724919134051,1.54521133,2544.1,2544.0,3.7574]
[1724919134249,0.00589102,2544.1,2544.0,3.7574]
[1724919135150,4.13241718,2544.1,2544.0,3.79298]
[1724919135349,0.00589102,2544.1,2544.0,3.4]
[1724919135952,0.00589102,2544.1,2544.0,3.79298]
[1724919136457,1.54522736,2544.1,2544.0,3.79298]
[1724919136747,0.00589102,2544.1,2544.0,10.93118]
[1724919136937,0.00589102,2544.1,2544.0,13.72338]
[1724919137142,0.00589102,2544.1,2544.0,7.72338]
[1724919138248,0.00589102,2544.1,2544.0,13.72338]
[1724919138553,0.00589102,2544.1,2544.0,16.93118]
[1724919138852,0.00589102,2544.1,2544.0,10.93118]
[1724919139149,0.00589102,2544.1,2544.0,7.72338]
[1724919142550,0.00589102,2544.1,2544.0,11.91363]
[1724919142846,0.3569,2544.6,2544.5,0.3929]
[1724919143051,1.53933634,2544.7,2544.6,0.39289]
[1724919143254,0.3738,2544.8,2544.7,0.39287]
[1724919143449,1.53933634,2545.0,2544.7,3.4]
[1724919143748,1.53933634,2545.0,2544.8,0.39285]
[1724919143749,4.2932823,2544.9,2544.8,0.39285]
[1724919144451,4.2932823,2544.9,2544.7,3.79286]
[1724919144844,0.39286,2544.8,2544.6,0.00589102]
[1724919145155,0.3679,2544.7,2544.6,0.00589102]
[1724919145449,1.0917,2544.7,2544.6,0.39878102]
[1724919145649,0.3679,2544.7,2544.6,0.39878102]
[1724919145855,0.3679,2544.7,2544.6,0.00589102]
[1724919147945,0.3679,2544.7,2544.6,0.39878102]
[1724919148151,0.3679,2544.7,2544.6,0.77698102]
[1724919148353,0.3833,2545.0,2544.9,0.39284]
[1724919148663,0.38809102,2545.1,2544.9,0.39283]
[1724919148977,0.38809102,2545.1,2545.0,40.8]
[1724919149157,0.38809102,2545.1,2544.8,3.79284]
[1724919149353,0.38809102,2545.1,2544.9,0.39283]
[1724919149655,0.38809102,2545.1,2544.9,41.19283]
[1724919150052,0.38809102,2545.1,2545.0,0.39282]
[1724919150850,0.38809102,2545.1,2544.9,40.99437184]
[1724919151052,0.38809102,2545.1,2545.0,0.39282]
[1724919151460,0.38809102,2545.1,2544.9,41.19283]
[1724919151762,0.38809102,2545.1,2544.9,40.8]
[1724919152848,0.38809102,2545.1,2544.9,41.19284]
[1724919153959,0.38809102,2545.1,2544.8,6.68]
[1724919154153,0.38809102,2545.1,2544.9,0.39283]
[1724919154351,0.78090102,2545.1,2544.8,7.26857981]
[1724919154558,0.39283,2545.0,2544.8,6.87473981]
[1724919154853,0.78090102,2545.1,2544.8,7.26758981]
[1724919155859,0.39283,2545.0,2544.8,6.679]
[1724919156063,0.78091102,2545.1,2544.8,7.07185]
[1724919156656,0.38809102,2545.1,2544.9,0.39284]
[1724919156857,0.78090102,2545.1,2544.9,0.39284]
[1724919157055,0.38809102,2545.1,2544.9,0.39284]
[1724919157658,0.38809102,2545.1,2545.0,0.39282]
[1724919159261,0.38809102,2545.1,2544.7,44.98996]
[1724919159262,4.31689102,2545.1,2544.6,0.00589102]
[1724919159461,0.39286,2544.8,2544.6,3.40589102]
[1724919159662,5.78002767,2545.1,2544.6,3.40589102]
[1724919159855,4.40988665,2544.7,2544.6,3.79878102]
[1724919160054,0.39286,2544.8,2544.6,3.40589102]
[1724919160256,0.76916,2544.8,2544.6,3.40589102]
[1724919160555,4.93234021,2544.8,2544.6,3.40589102]
[1724919160755,0.76916,2544.8,2544.6,3.40589102]
[1724919161061,4.73894559,2544.7,2544.6,3.40589102]
[1724919163661,5.72112559,2544.7,2544.6,3.40589102]
[1724919164161,15.25785559,2544.7,2543.6,3.2078]
[1724919164357,3.2078,2544.3,2544.2,0.39294]
[1724919164559,3.2078,2544.3,2544.2,3.79294]
[1724919164764,3.2078,2544.7,2544.5,0.3929]
[1724919165055,3.2078,2544.7,2544.6,0.3579]
[1724919165265,3.2078,2544.7,2544.6,0.75079]
[1724919165462,3.2078,2544.7,2544.6,0.3579]
[1724919165656,3.2078,2544.7,2544.6,3.7579]
[1724919165858,1.12356,2544.8,2544.6,3.7579]
[1724919166261,4.4226058,2544.7,2544.6,3.7579]
[1724919168064,4.4226058,2544.7,2544.6,4.15079]
[1724919168668,0.3544,2544.8,2544.7,0.39287]
[1724919168862,0.3544,2544.8,2544.7,0.76857]
[1724919173868,0.3544,2544.8,2544.7,0.3757]
[1724919174465,0.3544,2544.8,2544.7,0.76857]
[1724919175564,3.60064,2545.0,2544.7,0.76857]
[1724919175762,0.38889102,2545.1,2544.9,3.79284]
[1724919175963,0.38889102,2545.1,2545.0,0.3783]
[1724919176263,4.52556871,2545.1,2545.0,0.3783]
[1724919176669,4.91837871,2545.1,2545.0,0.3783]
[1724919176868,4.52556871,2545.1,2545.0,0.3783]
[1724919177765,7.73336871,2545.1,2544.9,3.4]
[1724919177972,1.14822,2545.0,2544.9,3.4]
[1724919178167,0.7554,2545.0,2544.9,3.4]
[1724919178567,0.7554,2545.0,2544.9,3.79284]
[1724919179274,0.7554,2545.0,2544.9,3.4]
[1724919179570,0.7554,2545.0,2544.9,3.79284]
[1724919180168,3.59669102,2545.1,2544.9,3.79284]
[1724919180365,3.59669102,2545.1,2544.9,3.79283]
[1724919180672,3.59669102,2545.1,2545.0,0.77332]
[1724919180868,3.59669102,2545.1,2545.0,0.3805]
[1724919181073,8.07673091,2545.1,2545.0,0.3805]
[1724919181472,7.30092091,2545.1,2545.0,0.77332]
[1724919183668,3.21369102,2545.1,2545.0,0.77332]
[1724919184479,0.00589102,2545.1,2545.0,0.77332]
[1724919185167,0.00589102,2545.1,2545.0,41.57332]
[1724919185770,0.36099102,2545.1,2545.0,41.57332]
[1724919186166,0.36099102,2545.1,2544.9,3.79283]
[1724919186371,4.51017054,2545.1,2544.9,3.79283]
[1724919186674,4.51017054,2545.1,2545.0,0.39282]
[1724919187076,7.07909359,2545.1,2545.0,0.39282]
[1724919188773,7.07909359,2545.1,2544.9,44.59283]
[1724919188975,7.07909359,2545.1,2545.0,0.39282]
[1724919191780,6.72399359,2545.1,2545.0,4.32162]
[1724919191979,2.57481407,2545.1,2545.0,4.32162]
[1724919192183,0.00589102,2545.1,2545.0,0.39282]
[1724919192376,2.0612195,2545.1,2545.0,0.39282]
[1724919192571,2.0612195,2545.1,2545.0,4.32162]
[1724919192777,2.05532848,2545.2,2545.1,0.39281]
[1724919192980,2.56892305,2545.5,2545.4,0.39276]
[1724919193185,2.05490555,2545.6,2545.5,0.39275]
[1724919193482,2.05490555,2545.6,2545.5,4.17725]
[1724919194181,2.05417989,2545.7,2545.6,0.39273]
[1724919194689,2.05417989,2545.7,2545.6,4.32073]
[1724919194981,2.06025668,2545.8,2545.7,0.39272]
[1724919195283,2.06025668,2545.8,2545.7,4.53952]
[1724919195284,1.54590436,2545.8,2545.7,4.53952]
[1724919195484,1.54590436,2545.8,2545.7,8.46752]
[1724919196285,0.00589102,2545.8,2545.7,8.46752]
[1724919196774,0.00589102,2545.8,2545.7,49.26752]
[1724919197175,3.21369102,2545.8,2545.7,41.1787]
[1724919197380,0.39272,2545.7,2545.5,3.4]
[1724919197678,6.46179111,2545.6,2545.3,4.5697]
[1724919197982,1.93122613,2545.5,2545.4,3.4]
[1724919198183,0.39276,2545.5,2545.4,3.4]
[1724919198584,1.53813564,2545.5,2545.4,3.4]
[1724919198786,1.53813564,2545.5,2545.4,3.79276]
[1724919198988,1.53813564,2545.5,2545.4,3.4]
[1724919199199,3.5925013,2545.5,2545.4,3.4]
[1724919199377,0.39274,2545.6,2545.4,3.4]
[1724919199378,2.44710566,2545.6,2545.4,3.4]
[1724919199577,2.44710566,2545.6,2545.4,3.79275]
[1724919199578,2.05436566,2545.6,2545.4,3.79275]
[1724919199784,4.54957031,2545.5,2545.4,3.79275]
[1724919200386,1.53794238,2545.6,2545.4,3.79275]
[1724919201282,1.53794238,2545.7,2545.5,0.39275]
[1724919201588,4.26954949,2545.7,2545.6,3.4]
[1724919202084,5.80722591,2545.7,2545.6,3.79273]
[1724919202390,5.10696744,2545.8,2545.7,0.39272]
[1724919202689,3.21369102,2545.8,2545.7,0.74942]
[1724919202891,3.21369102,2545.8,2545.7,1.12392]
[1724919203487,3.21369102,2545.8,2545.7,0.7312]
[1724919203690,3.21369102,2545.8,2545.7,0.3745]
[1724919203996,4.75136744,2545.8,2545.6,3.4]
[1724919204185,5.12846744,2545.8,2545.6,3.4]
[1724919204385,5.52117744,2545.8,2545.6,3.4]
[1724919204792,1.53767642,2545.7,2545.6,3.4]
[1724919204993,5.49776744,2545.8,2545.6,3.4]
[1724919205184,5.49776744,2545.8,2545.6,3.79273]
[1724919205987,5.49776744,2545.8,2545.7,0.39272]
[1724919205988,4.75136744,2545.8,2545.7,0.39272]
[1724919206189,3.21369102,2545.8,2545.7,0.39272]
[1724919207393,3.21369102,2545.8,2545.5,3.4]
[1724919207591,3.21369102,2545.8,2545.6,0.39272]
[1724919207592,4.75136744,2545.8,2545.6,0.39272]
[1724919208294,3.21369102,2545.8,2545.6,0.39272]
[1724919209196,3.21369102,2545.8,2545.7,0.39272]
[1724919210604,3.21369102,2545.8,2545.6,0.39272]
[1724919210800,4.75136744,2545.8,2545.6,0.39272]
[1724919212105,4.75136744,2545.8,2545.5,3.4]
[1724919212401,0.39273,2545.6,2545.5,3.4]
[1724919212601,1.93040642,2545.6,2545.5,3.4]
[1724919212904,1.89757642,2545.6,2545.5,3.4]
[1724919213897,1.53767642,2545.7,2545.6,0.39273]
[1724919214096,4.75136744,2545.8,2545.7,0.39272]
[1724919214297,3.21369102,2545.8,2545.7,0.39272]
[1724919215600,3.21369102,2545.8,2545.7,3.79272]
[1724919216193,0.00589102,2545.8,2545.7,7.72072]
[1724919216391,2.44056566,2546.2,2545.7,14.08552]
[1724919216392,1.53767642,2546.2,2545.7,14.08552]
[1724919216601,1.53767642,2546.3,2546.1,3.4]
[1724919216804,4.74547642,2546.4,2546.2,0.7324]
[1724919217008,4.09937265,2546.3,2546.2,1.12504]
[1724919217211,3.2078,2546.4,2546.3,0.39262]
[1724919218203,0.00589102,2546.6,2546.5,0.39259]
[1724919218506,0.00589102,2546.6,2546.5,3.79259]
[1724919218710,0.00589102,2546.6,2546.5,44.79322723]
[1724919219401,0.00589102,2546.6,2546.5,44.2]
[1724919219797,0.00589102,2546.6,2546.5,44.59259]
[1724919220895,0.00589102,2546.6,2546.5,44.2]
[1724919221502,1.54356744,2546.6,2546.5,44.2]
[1724919221709,4.31029102,2546.6,2546.3,3.4]
[1724919221906,6.00776566,2546.5,2546.1,3.40589102]
[1724919222101,1.53745682,2546.3,2546.1,3.40589102]
[1724919222415,1.93009682,2546.2,2546.1,44.20589102]
[1724919222616,2.30469682,2546.2,2546.1,44.20589102]
[1724919223003,2.30469682,2546.2,2546.1,0.00589102]
[1724919223004,10.34134717,2546.2,2546.1,0.00589102]
[1724919223202,8.41125035,2546.2,2546.1,0.00589102]
[1724919223513,8.80389035,2546.2,2546.1,0.00589102]
[1724919223698,10.34121586,2546.2,2546.1,0.00589102]
[1724919224208,4.87669035,2546.2,2546.1,0.00589102]
[1724919224415,8.80389035,2546.2,2546.1,0.00589102]
[1724919224716,10.85825601,2546.2,2546.1,0.00589102]
[1724919225215,12.01169035,2546.2,2546.1,0.00589102]
[1724919225611,13.67007431,2546.2,2546.1,0.00589102]
[1724919225802,9.74287431,2546.2,2546.1,3.40589102]
[1724919226308,6.53507431,2546.2,2546.1,3.40589102]
[1724919226610,6.0225032,2546.2,2546.1,3.79854102]
[1724919226816,4.48405035,2546.2,2546.1,3.79854102]
[1724919227115,5.64789257,2546.2,2546.1,3.79854102]
[1724919227312,5.64789257,2546.2,2546.1,3.40589102]
[1724919227518,6.16047431,2546.2,2546.1,3.40589102]
[1724919227705,6.16047431,2546.2,2546.1,3.79854102]
[1724919228017,5.64792253,2546.2,2546.1,3.79854102]
[1724919228412,1.53847218,2546.2,2546.1,3.79854102]
[1724919229809,1.53847218,2546.2,2546.1,3.40589102]
[1724919231006,1.53847218,2546.2,2546.1,3.79854102]
[1724919232015,1.53847218,2546.3,2546.2,0.39264]
[1724919232215,2.05102396,2546.3,2546.1,0.00589102]
[1724919232420,1.53868646,2546.2,2546.1,0.00589102]
[1724919232913,1.53868646,2546.2,2546.1,0.39854102]
[1724919233113,1.53868646,2546.2,2546.1,0.00589102]
[1724919233606,2.44365396,2546.3,2546.1,0.00589102]
[1724919233809,2.44366396,2546.2,2546.1,0.00589102]
[1724919234009,5.65146396,2546.2,2546.1,0.00589102]
[1724919234614,13.98508597,2546.2,2546.1,0.00589102]
[1724919235111,14.50298506,2546.2,2546.1,0.00589102]
[1724919237210,11.93406201,2546.2,2546.1,0.00589102]
[1724919237409,12.91566201,2546.2,2546.1,0.00589102]
[1724919237612,11.93406201,2546.2,2546.1,0.00589102]